{"text_format":"3","workbook":"xlsx","n_sheets":4,"sheets":["買い物リスト","予算の内訳","To Do リスト","共有リスト"],"not_rendered":{"charts":2,"images":2,"defined_names":12},"read":"whole","date_system":"1900"}

{"sheet":"買い物リスト","index":0,"n_rows":25,"n_cols":8,"rows_kept":25,"merged":[[2,1,2,7],[3,1,3,2]]}
[null,"新学期","計画シート"]
[]
[null,"予算の内訳に入力された予算カテゴリの金額と照らし合わせて買い物の進捗状況を確認します。"]
[null,"予算概要",null,null,{"$f":"\"購入の進行状況 (\"&COUNTIFS(チェックリスト[購入済み], \">0\")&\" の \"&COUNTIFS(チェックリスト[購入予定], \">0\")&\")\"","v":"購入の進行状況 (1 の 6)"}]
[null,"予算",{"v":1500,"d":"¥1,500.00"},null,{"$f":"IFERROR(COUNTIFS(チェックリスト[購入予定],\">0\",チェックリスト[購入済み],\">0\")/SumItemsToBuy,0)","v":{"v":0.16666666666666666,"d":"17%"}}]
[null,"買い物リストの合計",{"$f":"IFERROR(SUM(ChecklistTotal), \"\")","v":{"v":365,"d":"¥365.00"}}]
[null,"残りの現金",{"$f":"IFERROR(C5-C6, \"\")","v":{"v":1135,"d":"¥1,135.00"}}]
[null,"買い物リスト"]
[null,"項目","カテゴリ","数量","購入予定","費用","購入済み","合計費用"]
[null,"数学","教科書",1,1,{"v":55,"d":"¥55.00"},1,{"$f":"IFERROR(チェックリスト[[#This Row],[数量]]*チェックリスト[[#This Row],[費用]], \"\")","v":{"v":55,"d":"¥55.00"}}]
[null,"英語","教科書",1,1,null,null,{"$f":"IFERROR(チェックリスト[[#This Row],[数量]]*チェックリスト[[#This Row],[費用]], \"\")","v":0}]
[null,"バックパック","消耗品",1,null,{"v":30,"d":"¥30.00"},null,{"$f":"IFERROR(チェックリスト[[#This Row],[数量]]*チェックリスト[[#This Row],[費用]], \"\")","v":{"v":30,"d":"¥30.00"}}]
[null,"電卓","消耗品",1,{"$nulls":3},{"$f":"IFERROR(チェックリスト[[#This Row],[数量]]*チェックリスト[[#This Row],[費用]], \"\")","v":0}]
[null,"蛍光ペン","消耗品",3,{"$nulls":3},{"$f":"IFERROR(チェックリスト[[#This Row],[数量]]*チェックリスト[[#This Row],[費用]], \"\")","v":0}]
[null,"制服","衣服",2,1,{"v":100,"d":"¥100.00"},null,{"$f":"IFERROR(チェックリスト[[#This Row],[数量]]*チェックリスト[[#This Row],[費用]], \"\")","v":{"v":200,"d":"¥200.00"}}]
[null,"シャツ (ボタン付き)","衣服",4,{"$nulls":3},{"$f":"IFERROR(チェックリスト[[#This Row],[数量]]*チェックリスト[[#This Row],[費用]], \"\")","v":0}]
[null,"シャツ (T シャツ)","衣服",5,{"$nulls":3},{"$f":"IFERROR(チェックリスト[[#This Row],[数量]]*チェックリスト[[#This Row],[費用]], \"\")","v":0}]
[null,"ショートパンツ","衣服",2,{"$nulls":3},{"$f":"IFERROR(チェックリスト[[#This Row],[数量]]*チェックリスト[[#This Row],[費用]], \"\")","v":0}]
[null,"運動靴","衣服",2,1,null,null,{"$f":"IFERROR(チェックリスト[[#This Row],[数量]]*チェックリスト[[#This Row],[費用]], \"\")","v":0}]
[null,"靴下","衣服",10,{"$nulls":3},{"$f":"IFERROR(チェックリスト[[#This Row],[数量]]*チェックリスト[[#This Row],[費用]], \"\")","v":0}]
[null,"春用ジャケット","衣服",1,1,{"v":80,"d":"¥80.00"},null,{"$f":"IFERROR(チェックリスト[[#This Row],[数量]]*チェックリスト[[#This Row],[費用]], \"\")","v":{"v":80,"d":"¥80.00"}}]
[null,"セーター","衣服",1,{"$nulls":3},{"$f":"IFERROR(チェックリスト[[#This Row],[数量]]*チェックリスト[[#This Row],[費用]], \"\")","v":0}]
[null,"トレーナー","衣服",1,{"$nulls":3},{"$f":"IFERROR(チェックリスト[[#This Row],[数量]]*チェックリスト[[#This Row],[費用]], \"\")","v":0}]
[null,"下着","衣服",10,{"$nulls":3},{"$f":"IFERROR(チェックリスト[[#This Row],[数量]]*チェックリスト[[#This Row],[費用]], \"\")","v":0}]
[null,"冬用ジャケット","衣服",1,1,null,null,{"$f":"IFERROR(チェックリスト[[#This Row],[数量]]*チェックリスト[[#This Row],[費用]], \"\")","v":0}]

{"sheet":"予算の内訳","index":1,"n_rows":6,"n_cols":3,"rows_kept":6}
[null,"予算の内訳"]
[null,"カテゴリと予算の金額を追加して、買い物リストに照らし合わせて確認します"]
[null,"カテゴリ","合計費用"]
[null,"衣服",{"$f":"IFERROR(SUMIFS(チェックリスト[合計費用],チェックリスト[カテゴリ],カテゴリ[[#This Row],[カテゴリ]]), \"\")","v":{"v":280,"d":"¥280.00"}}]
[null,"消耗品",{"$f":"IFERROR(SUMIFS(チェックリスト[合計費用],チェックリスト[カテゴリ],カテゴリ[[#This Row],[カテゴリ]]), \"\")","v":{"v":30,"d":"¥30.00"}}]
[null,"教科書",{"$f":"IFERROR(SUMIFS(チェックリスト[合計費用],チェックリスト[カテゴリ],カテゴリ[[#This Row],[カテゴリ]]), \"\")","v":{"v":55,"d":"¥55.00"}}]

{"sheet":"To Do リスト","index":2,"n_rows":22,"n_cols":3,"rows_kept":22}
[null,"To Do リスト"]
[null,"学校が始まる前に完了する必要があるすべてのアクティビティを確認します"]
[null,"完了","タスク"]
[null,"x","すべての登録フォームに記入する"]
[null,null,"必要に応じて学校の健康診断と視力検査をスケジュールする"]
[null,null,"必要なすべての予防接種を確認する"]
[null,null,"必要なすべての薬の用量指示を記載したメモを医師から取得する"]
[null,null,"学校の服装規定を確認する"]
[null,null,"学用品のリストを取得する"]
[null,null,"教師に会う"]
[null,null,"教師の適切な連絡方法 (電話、メール、手書きメモ) を決める"]
[null,null,"子供と一緒に学校を見学する"]
[null,null,"自宅電話番号、勤務先電話番号、自宅住所を子供に覚えさせる"]
[null,null,"交通手段の手配、安全な待ち合わせ場所の指定、日常生活の練習を行う"]
[null,null,"徒歩の場合は、子供と一緒に数回通学路を実際に確認する"]
[null,null,"乗り合いの場合は、子供を乗り合いのドライバー全員に紹介する"]
[null,null,"バスに乗る場合は、時間とバス停を決める"]
[null,null,"子育て支援/学童保育を手配する"]
[null,null,"朝食、学校の軽食、弁当、放課後の軽食の献立を決める"]
[null,null,"宿題の場所とスケジュールを決める"]
[null,null,"学校が始まる 2 週間前には就寝時間の習慣を付ける"]
[null,null,"すべての学校の行事や活動の予定表を準備する"]

{"sheet":"共有リスト","index":3,"n_rows":4,"n_cols":5,"rows_kept":4}
[null,"共有リスト",null,null,"他のユーザーが投稿できるようにこのリストを共有します。右上の [共有] を選択するか、ALT キーを押してから \"Z\" キーを押し、続いて \"S\" キーを押します。ファイルを OneDrive に保存して、リンクを友人に送信します。"]
[null,"名前","メール","共有済み?"]
[null,"Nikola Janu","nikola@example.com","はい"]
[null,"Robert Anic","robert@example.com","いいえ"]